[Event "Late-Titled-Tuesday-Blitz-September-26-2023"]
[Site "Chess.com"]
[Date "2023.09.26"]
[Round "6"]
[White "aNaartjieZA"]
[Black "platy3"]
[Result "0-1"]
[WhiteElo "2607"]
[BlackElo "2877"]
[TimeControl "180+1"]
[EndTime "15:03:48 PDT"]
[Termination "platy3 won by resignation"]

1. e4 {[%clk 0:02:58.2]} 1... c6 {[%clk 0:02:50]} 2. d3 {[%clk 0:02:58.1]} 2...
d5 {[%clk 0:02:46.8]} 3. Nd2 {[%clk 0:02:58.7]} 3... Qc7 {[%clk 0:02:45.1]} 4.
Ngf3 {[%clk 0:02:58.4]} 4... Nd7 {[%clk 0:02:41]} 5. g3 {[%clk 0:02:57.2]} 5...
g6 {[%clk 0:02:40.7]} 6. Bg2 {[%clk 0:02:57.4]} 6... Bg7 {[%clk 0:02:40.5]} 7.
O-O {[%clk 0:02:57.7]} 7... Ngf6 {[%clk 0:02:40.4]} 8. Re1 {[%clk 0:02:57.6]}
8... O-O {[%clk 0:02:30.8]} 9. c3 {[%clk 0:02:50.1]} 9... e5 {[%clk 0:02:29.9]}
10. Qc2 {[%clk 0:02:26.1]} 10... b6 {[%clk 0:02:27.8]} 11. c4 {[%clk 0:02:16.2]}
11... d4 {[%clk 0:02:26]} 12. a3 {[%clk 0:02:15]} 12... a5 {[%clk 0:02:25.8]}
13. Rb1 {[%clk 0:02:15]} 13... a4 {[%clk 0:02:25.6]} 14. Rf1 {[%clk 0:02:11.7]}
14... c5 {[%clk 0:02:24.4]} 15. Nh4 {[%clk 0:02:09.5]} 15... Bb7 {[%clk
0:02:22.8]} 16. f4 {[%clk 0:02:09]} 16... Ng4 {[%clk 0:02:22.2]} 17. Ndf3 {[%clk
0:02:05.7]} 17... b5 {[%clk 0:02:15.1]} 18. cxb5 {[%clk 0:01:57.9]} 18... c4
{[%clk 0:02:06]} 19. h3 {[%clk 0:01:49.4]} 19... Ne3 {[%clk 0:02:03]} 20. Bxe3
{[%clk 0:01:49]} 20... dxe3 {[%clk 0:02:03.9]} 21. f5 {[%clk 0:01:41.4]} 21...
Qc5 {[%clk 0:01:58.4]} 22. dxc4 {[%clk 0:01:34.8]} 22... Nf6 {[%clk 0:01:51]}
23. Ne1 {[%clk 0:01:22.4]} 23... g5 {[%clk 0:01:41.2]} 24. Nd3 {[%clk
0:01:13.7]} 24... Qe7 {[%clk 0:01:38.9]} 25. c5 {[%clk 0:01:07.7]} 25... gxh4
{[%clk 0:01:37.7]} 26. c6 {[%clk 0:01:07.6]} 26... Bc8 {[%clk 0:01:35.2]} 27. g4
{[%clk 0:01:01.8]} 27... Bh6 {[%clk 0:01:34.9]} 28. Rfe1 {[%clk 0:00:42.8]}
28... Rd8 {[%clk 0:01:32.2]} 29. Qc3 {[%clk 0:00:40.2]} 29... Rd4 {[%clk
0:01:17.3]} 30. b6 {[%clk 0:00:39.1]} 30... Ba6 {[%clk 0:01:15.1]} 31. b7 {[%clk
0:00:31.1]} 31... Re8 {[%clk 0:01:08.3]} 32. Nb4 {[%clk 0:00:28.4]} 32... Bxb7
{[%clk 0:01:05]} 33. cxb7 {[%clk 0:00:26.3]} 33... Qxb7 {[%clk 0:01:05.9]} 34.
Rxe3 {[%clk 0:00:23.8]} 34... Rc8 {[%clk 0:01:01.7]} 35. Qe1 {[%clk 0:00:20.2]}
35... Qb6 {[%clk 0:00:41.7]} 36. Kh1 {[%clk 0:00:17.6]} 36... Rxb4 {[%clk
0:00:41.8]} 37. axb4 {[%clk 0:00:14.3]} 37... Qxe3 {[%clk 0:00:40.7]} 38. Qxe3
{[%clk 0:00:13.5]} 38... Bxe3 {[%clk 0:00:41.6]} 39. Bf1 {[%clk 0:00:13.3]}
39... Nxe4 {[%clk 0:00:41.1]} 40. b5 {[%clk 0:00:10.7]} 40... Rc2 {[%clk
0:00:39.8]} 0-1

[Event "Late-Titled-Tuesday-Blitz-September-26-2023"]
[Site "Chess.com"]
[Date "2023.09.26"]
[Round "6"]
[White "Herman-NY"]
[Black "AEMEffi"]
[Result "0-1"]
[WhiteElo "2490"]
[BlackElo "2377"]
[TimeControl "180+1"]
[EndTime "15:03:50 PDT"]
[Termination "AEMEffi won on time"]

1. e4 {[%clk 0:03:00.9]} 1... e5 {[%clk 0:02:57.8]} 2. Nf3 {[%clk 0:02:58.2]}
2... Nc6 {[%clk 0:02:57.6]} 3. Bb5 {[%clk 0:02:58.1]} 3... Nf6 {[%clk
0:02:54.6]} 4. d3 {[%clk 0:02:58.1]} 4... Bc5 {[%clk 0:02:53.7]} 5. c3 {[%clk
0:02:58.6]} 5... d5 {[%clk 0:02:40.6]} 6. Nbd2 {[%clk 0:02:57.6]} 6... dxe4
{[%clk 0:02:26]} 7. dxe4 {[%clk 0:02:56.9]} 7... O-O {[%clk 0:02:25.2]} 8. O-O
{[%clk 0:02:48.7]} 8... a5 {[%clk 0:02:24.1]} 9. a4 {[%clk 0:02:48.4]} 9... Qe7
{[%clk 0:02:18.7]} 10. Qc2 {[%clk 0:02:45.4]} 10... Nb8 {[%clk 0:02:18.1]} 11.
h3 {[%clk 0:02:40.7]} 11... c6 {[%clk 0:02:06.1]} 12. Be2 {[%clk 0:02:29]} 12...
h6 {[%clk 0:02:02.1]} 13. Nc4 {[%clk 0:02:25.2]} 13... Nbd7 {[%clk 0:02:00.8]}
14. Bd2 {[%clk 0:02:22.3]} 14... Ne8 {[%clk 0:01:48.6]} 15. Rfb1 {[%clk
0:02:19]} 15... Nd6 {[%clk 0:01:47.7]} 16. b4 {[%clk 0:02:18.8]} 16... Nxc4
{[%clk 0:01:44.3]} 17. Bxc4 {[%clk 0:02:18.7]} 17... Bb6 {[%clk 0:01:33.8]} 18.
Re1 {[%clk 0:01:57.2]} 18... Nf6 {[%clk 0:01:11.8]} 19. Qb3 {[%clk 0:01:54.8]}
19... Be6 {[%clk 0:01:08.6]} 20. Bxe6 {[%clk 0:01:47.2]} 20... Qxe6 {[%clk
0:01:03.5]} 21. Qxe6 {[%clk 0:01:45.8]} 21... fxe6 {[%clk 0:01:04.4]} 22. bxa5
{[%clk 0:01:31.2]} 22... Rxa5 {[%clk 0:00:57.7]} 23. c4 {[%clk 0:01:04.1]} 23...
Ra6 {[%clk 0:00:57]} 24. a5 {[%clk 0:00:47.3]} 24... Ba7 {[%clk 0:00:36.2]} 25.
Bb4 {[%clk 0:00:30.5]} 25... Ra8 {[%clk 0:00:27.4]} 26. Rad1 {[%clk 0:00:22.2]}
26... b6 {[%clk 0:00:20.3]} 27. Nxe5 {[%clk 0:00:09]} 27... bxa5 {[%clk
0:00:18.2]} 28. Ba3 {[%clk 0:00:09.4]} 28... Rb6 {[%clk 0:00:14.3]} 29. Rd3
{[%clk 0:00:05.5]} 29... a4 {[%clk 0:00:12.5]} 0-1

[Event "Late-Titled-Tuesday-Blitz-September-26-2023"]
[Site "Chess.com"]
[Date "2023.09.26"]
[Round "6"]
[White "PawnEatingZombie"]
[Black "Nekoo04"]
[Result "1-0"]
[WhiteElo "2160"]
[BlackElo "2306"]
[TimeControl "180+1"]
[EndTime "15:03:50 PDT"]
[Termination "PawnEatingZombie won on time"]

1. e4 {[%clk 0:03:00.9]} 1... c5 {[%clk 0:02:24.1]} 2. c3 {[%clk 0:03:00.3]}
2... d5 {[%clk 0:02:22.9]} 3. exd5 {[%clk 0:03:00]} 3... Qxd5 {[%clk 0:02:23.8]}
4. d4 {[%clk 0:03:00.3]} 4... Nf6 {[%clk 0:02:23.6]} 5. Nf3 {[%clk 0:02:59.5]}
5... e6 {[%clk 0:02:22.5]} 6. Be3 {[%clk 0:02:58.4]} 6... cxd4 {[%clk
0:02:20.6]} 7. cxd4 {[%clk 0:02:59.3]} 7... Nc6 {[%clk 0:02:21.2]} 8. Nc3 {[%clk
0:02:59.2]} 8... Qd8 {[%clk 0:02:21.3]} 9. Bd3 {[%clk 0:02:58]} 9... Be7 {[%clk
0:02:20.6]} 10. O-O {[%clk 0:02:56.9]} 10... O-O {[%clk 0:02:21.3]} 11. Re1
{[%clk 0:02:57.3]} 11... b6 {[%clk 0:02:21.1]} 12. Rc1 {[%clk 0:02:50.6]} 12...
Bb7 {[%clk 0:02:18.8]} 13. Bb1 {[%clk 0:02:50]} 13... Rc8 {[%clk 0:02:17.1]} 14.
a3 {[%clk 0:02:46.5]} 14... Na5 {[%clk 0:02:13.1]} 15. Qd3 {[%clk 0:02:43.7]}
15... Nc4 {[%clk 0:02:03.1]} 16. Bg5 {[%clk 0:02:30]} 16... g6 {[%clk 0:01:42]}
17. Qe2 {[%clk 0:02:02]} 17... Bxf3 {[%clk 0:01:08.7]} 18. Qxf3 {[%clk
0:01:59.7]} 18... Nxb2 {[%clk 0:01:08.5]} 19. Ba2 {[%clk 0:01:18.1]} 19... Nd5
{[%clk 0:00:23.1]} 20. Bh6 {[%clk 0:01:09.3]} 20... Nxc3 {[%clk 0:00:16.1]} 21.
Rxc3 {[%clk 0:01:00.5]} 21... Qxd4 {[%clk 0:00:14.9]} 22. Rce3 {[%clk
0:00:44.6]} 22... Nc4 {[%clk 0:00:11.6]} 23. Re4 {[%clk 0:00:41.1]} 23... Qd5
{[%clk 0:00:04.9]} 24. Bxf8 {[%clk 0:00:40.2]} 24... Bxf8 {[%clk 0:00:03.6]} 25.
Qc3 {[%clk 0:00:30.1]} 25... b5 {[%clk 0:00:01.2]} 26. Qh3 {[%clk 0:00:11.1]}
1-0

[Event "Late-Titled-Tuesday-Blitz-September-26-2023"]
[Site "Chess.com"]
[Date "2023.09.26"]
[Round "6"]
[White "kai_nov"]
[Black "topin8"]
[Result "1-0"]
[WhiteElo "2266"]
[BlackElo "2417"]
[TimeControl "180+1"]
[EndTime "15:03:52 PDT"]
[Termination "kai_nov won on time"]

1. d4 {[%clk 0:03:00.9]} 1... Nf6 {[%clk 0:02:57.1]} 2. c4 {[%clk 0:03:00.2]}
2... c5 {[%clk 0:02:57.1]} 3. d5 {[%clk 0:02:59.3]} 3... d6 {[%clk 0:02:57.3]}
4. Nc3 {[%clk 0:02:59]} 4... g6 {[%clk 0:02:57.9]} 5. e4 {[%clk 0:02:59.4]} 5...
Bg7 {[%clk 0:02:58.5]} 6. f3 {[%clk 0:03:00]} 6... O-O {[%clk 0:02:59.1]} 7. Bg5
{[%clk 0:03:00.4]} 7... e6 {[%clk 0:02:59.7]} 8. Qd2 {[%clk 0:03:00.5]} 8... Re8
{[%clk 0:02:52.1]} 9. a4 {[%clk 0:02:58.8]} 9... Qa5 {[%clk 0:02:06.8]} 10. Ra3
{[%clk 0:02:53.1]} 10... exd5 {[%clk 0:02:00]} 11. cxd5 {[%clk 0:02:54]} 11...
Bd7 {[%clk 0:01:51.8]} 12. Nge2 {[%clk 0:02:34.1]} 12... Na6 {[%clk 0:01:47]}
13. Ng3 {[%clk 0:02:19.4]} 13... Qb4 {[%clk 0:01:00.7]} 14. Be2 {[%clk
0:02:11.4]} 14... Nc7 {[%clk 0:00:54.7]} 15. Bf4 {[%clk 0:01:47.1]} 15... Bf8
{[%clk 0:00:51.4]} 16. O-O {[%clk 0:01:43.4]} 16... Qd4+ {[%clk 0:00:49.3]} 17.
Qxd4 {[%clk 0:01:25.3]} 17... cxd4 {[%clk 0:00:50.2]} 18. Nb5 {[%clk 0:01:24.5]}
18... Bxb5 {[%clk 0:00:21.1]} 19. axb5 {[%clk 0:01:19.9]} 19... Ncxd5 {[%clk
0:00:20]} 20. exd5 {[%clk 0:01:18.2]} 20... Nxd5 {[%clk 0:00:20.9]} 21. Bd2
{[%clk 0:01:13.5]} 21... h5 {[%clk 0:00:13.3]} 22. Bd3 {[%clk 0:01:03.1]} 22...
Nb6 {[%clk 0:00:06.4]} 23. Ne4 {[%clk 0:01:00.5]} 23... Kg7 {[%clk 0:00:02.9]}
24. Bb4 {[%clk 0:00:46.5]} 24... Nd5 {[%clk 0:00:01.3]} 25. Bxd6 {[%clk
0:00:44.5]} 25... Bxd6 {[%clk 0:00:01.1]} 26. Nxd6 {[%clk 0:00:45.4]} 26... Re3
{[%clk 0:00:01.1]} 27. Nxb7 {[%clk 0:00:42.5]} 27... Rc8 {[%clk 0:00:01.7]} 28.
Nd6 {[%clk 0:00:31.9]} 28... Rc7 {[%clk 0:00:01.9]} 29. Ne4 {[%clk 0:00:28.4]}
29... Nf4 {[%clk 0:00:02]} 30. Nf2 {[%clk 0:00:27.2]} 30... Rce7 {[%clk
0:00:01.8]} 31. g3 {[%clk 0:00:24.7]} 31... f5 {[%clk 0:00:02.4]} 32. gxf4
{[%clk 0:00:24.4]} 32... Rxf3 {[%clk 0:00:02.4]} 33. Kg2 {[%clk 0:00:23.8]} 1-0

[Event "Late-Titled-Tuesday-Blitz-September-26-2023"]
[Site "Chess.com"]
[Date "2023.09.26"]
[Round "6"]
[White "K_alena13"]
[Black "micke12a"]
[Result "0-1"]
[WhiteElo "2154"]
[BlackElo "2347"]
[TimeControl "180+1"]
[EndTime "15:03:56 PDT"]
[Termination "micke12a won on time"]

1. Nf3 {[%clk 0:03:00.9]} 1... Nf6 {[%clk 0:02:57.4]} 2. c4 {[%clk 0:03:00.3]}
2... g6 {[%clk 0:02:56.6]} 3. Nc3 {[%clk 0:02:57.8]} 3... Bg7 {[%clk 0:02:39.3]}
4. e4 {[%clk 0:02:56.4]} 4... e5 {[%clk 0:02:39.8]} 5. d4 {[%clk 0:02:45.2]}
5... exd4 {[%clk 0:02:29.7]} 6. Nxd4 {[%clk 0:02:25.1]} 6... O-O {[%clk
0:02:24.6]} 7. Be2 {[%clk 0:02:23.4]} 7... c6 {[%clk 0:02:24.3]} 8. O-O {[%clk
0:02:22.2]} 8... d5 {[%clk 0:02:22.3]} 9. cxd5 {[%clk 0:02:11.7]} 9... cxd5
{[%clk 0:02:21.4]} 10. e5 {[%clk 0:02:06.2]} 10... Ne4 {[%clk 0:02:15.2]} 11. f4
{[%clk 0:01:48.4]} 11... Nxc3 {[%clk 0:02:06.2]} 12. bxc3 {[%clk 0:01:47.8]}
12... Nc6 {[%clk 0:02:06.1]} 13. Be3 {[%clk 0:01:42.9]} 13... f6 {[%clk
0:02:02.3]} 14. exf6 {[%clk 0:01:26.2]} 14... Bxf6 {[%clk 0:01:52.5]} 15. Bg4
{[%clk 0:01:16.7]} 15... Nxd4 {[%clk 0:01:50.6]} 16. Bxd4 {[%clk 0:01:13.5]}
16... Bxg4 {[%clk 0:01:49.5]} 17. Qxg4 {[%clk 0:01:12.7]} 17... Bxd4+ {[%clk
0:01:49.3]} 18. cxd4 {[%clk 0:01:13.6]} 18... Qf6 {[%clk 0:01:49]} 19. f5 {[%clk
0:01:06.4]} 19... g5 {[%clk 0:01:47]} 20. Rae1 {[%clk 0:01:00.8]} 20... Rae8
{[%clk 0:01:45.6]} 21. Re5 {[%clk 0:00:50.9]} 21... Rxe5 {[%clk 0:01:41.2]} 22.
dxe5 {[%clk 0:00:51.8]} 22... Qxe5 {[%clk 0:01:41.4]} 23. Qxg5+ {[%clk
0:00:52.1]} 23... Kh8 {[%clk 0:01:42.1]} 24. h4 {[%clk 0:00:29.6]} 24... d4
{[%clk 0:01:40.6]} 25. f6 {[%clk 0:00:25.7]} 25... Qxg5 {[%clk 0:01:30.6]} 26.
hxg5 {[%clk 0:00:26.6]} 26... Kg8 {[%clk 0:01:30.4]} 27. Rd1 {[%clk 0:00:23]}
27... Rd8 {[%clk 0:01:29.2]} 28. Kf2 {[%clk 0:00:21.6]} 28... Kf7 {[%clk
0:01:26.6]} 29. Kf3 {[%clk 0:00:21.8]} 29... Kg6 {[%clk 0:01:24.8]} 30. Kf4
{[%clk 0:00:21.2]} 30... Rd5 {[%clk 0:01:18.6]} 31. Rd3 {[%clk 0:00:10.2]} 31...
Rf5+ {[%clk 0:01:14.2]} 32. Ke4 {[%clk 0:00:09.3]} 32... Rxg5 {[%clk 0:01:13.4]}
33. Kxd4 {[%clk 0:00:09.4]} 33... Kxf6 {[%clk 0:01:11.9]} 34. Rd2 {[%clk
0:00:09.6]} 34... Ke6 {[%clk 0:01:10.7]} 35. Kc4 {[%clk 0:00:09]} 35... h5
{[%clk 0:01:07.1]} 36. Kb4 {[%clk 0:00:08.7]} 36... b6 {[%clk 0:01:05.6]} 37.
Kc4 {[%clk 0:00:08.5]} 37... a5 {[%clk 0:01:05.3]} 38. a4 {[%clk 0:00:06.8]}
38... Rc5+ {[%clk 0:01:05.4]} 39. Kb3 {[%clk 0:00:06.7]} 39... Rd5 {[%clk
0:01:04]} 40. Re2+ {[%clk 0:00:06.8]} 40... Kf5 {[%clk 0:01:04.3]} 41. Rf2+
{[%clk 0:00:06.1]} 41... Kg4 {[%clk 0:01:04.6]} 42. Rc2 {[%clk 0:00:06]} 42...
h4 {[%clk 0:01:03.7]} 43. Rc6 {[%clk 0:00:05.2]} 43... b5 {[%clk 0:01:04.2]} 44.
axb5 {[%clk 0:00:04.9]} 44... Rxb5+ {[%clk 0:01:04]} 45. Kc4 {[%clk 0:00:03.6]}
45... Rb4+ {[%clk 0:01:04.4]} 46. Kc3 {[%clk 0:00:03.9]} 46... Kg3 {[%clk
0:01:02.6]} 47. Ra6 {[%clk 0:00:03.8]} 47... Kxg2 {[%clk 0:01:01]} 48. Rxa5
{[%clk 0:00:04.1]} 48... Rg4 {[%clk 0:01:00.4]} 49. Kd3 {[%clk 0:00:03.5]} 49...
h3 {[%clk 0:01:00.6]} 50. Ra2+ {[%clk 0:00:02.7]} 50... Kg3 {[%clk 0:01:01.2]}
51. Ra7 {[%clk 0:00:02.2]} 51... h2 {[%clk 0:01:01.6]} 52. Rh7 {[%clk
0:00:01.5]} 52... Kg2 {[%clk 0:01:01.8]} 0-1

[Event "Late-Titled-Tuesday-Blitz-September-26-2023"]
[Site "Chess.com"]
[Date "2023.09.26"]
[Round "6"]
[White "ValeriyGrinev"]
[Black "Fandorine"]
[Result "1/2-1/2"]
[WhiteElo "2580"]
[BlackElo "2939"]
[TimeControl "180+1"]
[EndTime "15:04:00 PDT"]
[Termination "Game drawn by repetition"]

1. d4 {[%clk 0:03:00.9]} 1... Nf6 {[%clk 0:02:58.4]} 2. c4 {[%clk 0:03:01.4]}
2... e6 {[%clk 0:02:57.6]} 3. Nc3 {[%clk 0:03:01.8]} 3... d5 {[%clk 0:02:57.4]}
4. cxd5 {[%clk 0:03:01.3]} 4... exd5 {[%clk 0:02:58.3]} 5. Bg5 {[%clk
0:03:00.7]} 5... c6 {[%clk 0:02:59]} 6. e3 {[%clk 0:03:01.1]} 6... Be7 {[%clk
0:02:59.5]} 7. Bd3 {[%clk 0:03:00.7]} 7... h6 {[%clk 0:02:59.3]} 8. Bh4 {[%clk
0:03:00.3]} 8... O-O {[%clk 0:02:59.3]} 9. Qc2 {[%clk 0:03:00]} 9... Re8 {[%clk
0:02:59.7]} 10. Nf3 {[%clk 0:02:56.9]} 10... Ne4 {[%clk 0:02:57.6]} 11. Bxe7
{[%clk 0:02:54.9]} 11... Qxe7 {[%clk 0:02:57.3]} 12. O-O {[%clk 0:02:54.9]}
12... Nd7 {[%clk 0:02:48.5]} 13. b4 {[%clk 0:02:54.4]} 13... a6 {[%clk
0:02:41.8]} 14. a4 {[%clk 0:02:53.8]} 14... Ndf6 {[%clk 0:02:39.3]} 15. b5
{[%clk 0:02:53]} 15... axb5 {[%clk 0:02:22.9]} 16. axb5 {[%clk 0:02:52.8]} 16...
Bd7 {[%clk 0:02:23.8]} 17. bxc6 {[%clk 0:02:50.4]} 17... bxc6 {[%clk 0:02:23.8]}
18. Bxe4 {[%clk 0:02:40.7]} 18... dxe4 {[%clk 0:02:00.9]} 19. Ne5 {[%clk
0:02:30.6]} 19... Rxa1 {[%clk 0:02:00.5]} 20. Rxa1 {[%clk 0:02:29]} 20... c5
{[%clk 0:02:01.4]} 21. Nxd7 {[%clk 0:02:20.7]} 21... Nxd7 {[%clk 0:02:02.3]} 22.
Ne2 {[%clk 0:01:42.4]} 22... cxd4 {[%clk 0:01:56.1]} 23. Nxd4 {[%clk 0:01:43.3]}
23... Nc5 {[%clk 0:01:55]} 24. h3 {[%clk 0:01:35]} 24... Nd3 {[%clk 0:01:53.8]}
25. Qc6 {[%clk 0:01:35.3]} 25... Rb8 {[%clk 0:01:29.3]} 26. Ra8 {[%clk
0:01:34.4]} 26... Rxa8 {[%clk 0:01:14.2]} 27. Qxa8+ {[%clk 0:01:35.3]} 27... Kh7
{[%clk 0:01:14.9]} 28. Qd5 {[%clk 0:01:33.5]} 28... g6 {[%clk 0:01:09]} 29. Ne2
{[%clk 0:00:47.5]} 29... Qf6 {[%clk 0:00:51.5]} 30. f4 {[%clk 0:00:47.6]} 30...
exf3 {[%clk 0:00:39.1]} 31. Qxd3 {[%clk 0:00:47]} 31... Qa1+ {[%clk 0:00:22.8]}
32. Kf2 {[%clk 0:00:46.8]} 32... fxe2 {[%clk 0:00:22.1]} 33. Qxe2 {[%clk
0:00:47.7]} 33... Kg7 {[%clk 0:00:20.7]} 34. Qc4 {[%clk 0:00:42.2]} 34... Qf6+
{[%clk 0:00:19.4]} 35. Ke2 {[%clk 0:00:41.7]} 35... Qg5 {[%clk 0:00:18.2]} 36.
Kf3 {[%clk 0:00:41.2]} 36... Qf5+ {[%clk 0:00:17.7]} 37. Ke2 {[%clk 0:00:41.1]}
37... h5 {[%clk 0:00:16]} 38. Qd4+ {[%clk 0:00:40.8]} 38... Kg8 {[%clk
0:00:16.6]} 39. Qd8+ {[%clk 0:00:40.4]} 39... Kh7 {[%clk 0:00:16.9]} 40. Qd4
{[%clk 0:00:39.9]} 40... Qc2+ {[%clk 0:00:14.5]} 41. Kf3 {[%clk 0:00:39.8]}
41... Qf5+ {[%clk 0:00:15.2]} 42. Ke2 {[%clk 0:00:39.9]} 42... Qg5 {[%clk
0:00:14.3]} 43. Kf3 {[%clk 0:00:39.2]} 43... Qf5+ {[%clk 0:00:13.9]} 44. Ke2
{[%clk 0:00:38.9]} 1/2-1/2

[Event "Late-Titled-Tuesday-Blitz-September-26-2023"]
[Site "Chess.com"]
[Date "2023.09.26"]
[Round "6"]
[White "rikchessmx"]
[Black "RonArtest77"]
[Result "0-1"]
[WhiteElo "2354"]
[BlackElo "2495"]
[TimeControl "180+1"]
[EndTime "15:04:00 PDT"]
[Termination "RonArtest77 won by checkmate"]

1. e4 {[%clk 0:02:36.9]} 1... g6 {[%clk 0:02:59]} 2. d4 {[%clk 0:02:36.6]} 2...
Bg7 {[%clk 0:02:59.8]} 3. Nc3 {[%clk 0:02:37.1]} 3... d6 {[%clk 0:03:00.5]} 4.
f3 {[%clk 0:02:37.5]} 4... a6 {[%clk 0:03:01.2]} 5. Be3 {[%clk 0:02:37.8]} 5...
Nd7 {[%clk 0:03:01.9]} 6. Qd2 {[%clk 0:02:38.4]} 6... b5 {[%clk 0:03:02.6]} 7.
h4 {[%clk 0:02:38.4]} 7... h6 {[%clk 0:03:00]} 8. g4 {[%clk 0:02:36.2]} 8... Bb7
{[%clk 0:03:00.4]} 9. Nh3 {[%clk 0:02:35.1]} 9... Rc8 {[%clk 0:03:00]} 10. Nf2
{[%clk 0:02:34.2]} 10... c5 {[%clk 0:02:59.9]} 11. Bg2 {[%clk 0:02:33.3]} 11...
Nb6 {[%clk 0:02:52.1]} 12. b3 {[%clk 0:02:32.8]} 12... Qc7 {[%clk 0:02:45.1]}
13. Ne2 {[%clk 0:02:29.5]} 13... cxd4 {[%clk 0:02:34]} 14. Bxd4 {[%clk
0:02:26.6]} 14... e5 {[%clk 0:02:25.6]} 15. Bxb6 {[%clk 0:02:24.8]} 15... Qxb6
{[%clk 0:02:25.7]} 16. c3 {[%clk 0:02:20.5]} 16... Ne7 {[%clk 0:02:20.6]} 17. h5
{[%clk 0:02:17.8]} 17... d5 {[%clk 0:02:05.5]} 18. hxg6 {[%clk 0:02:16.4]} 18...
fxg6 {[%clk 0:02:05.7]} 19. g5 {[%clk 0:01:58.6]} 19... h5 {[%clk 0:02:02.2]}
20. O-O-O {[%clk 0:01:47.3]} 20... Qxf2 {[%clk 0:01:54.8]} 21. Bh3 {[%clk
0:01:45.3]} 21... Rc7 {[%clk 0:01:48.5]} 22. Rdf1 {[%clk 0:01:43.8]} 22... Qc5
{[%clk 0:01:41]} 23. Kb1 {[%clk 0:01:43.4]} 23... Bc8 {[%clk 0:01:20.3]} 24.
Bxc8 {[%clk 0:01:38.2]} 24... Rxc8 {[%clk 0:01:20.4]} 25. Rc1 {[%clk 0:01:35.3]}
25... O-O {[%clk 0:01:19.8]} 26. exd5 {[%clk 0:01:30.2]} 26... Qxd5 {[%clk
0:01:18.1]} 27. Qe3 {[%clk 0:01:26.1]} 27... Rxf3 {[%clk 0:01:15.2]} 28. Qa7
{[%clk 0:01:20.9]} 28... Qe4+ {[%clk 0:01:11.5]} 29. Rc2 {[%clk 0:01:11.9]}
29... Nf5 {[%clk 0:00:55.6]} 30. Rc1 {[%clk 0:01:05.6]} 30... Ne3 {[%clk
0:00:51.6]} 31. Qxa6 {[%clk 0:01:05.6]} 31... Rcf8 {[%clk 0:00:43.5]} 32. Qxb5
{[%clk 0:00:57.3]} 32... Nxc2 {[%clk 0:00:40.4]} 33. Rxc2 {[%clk 0:00:57.4]}
33... h4 {[%clk 0:00:29.7]} 34. Kb2 {[%clk 0:00:56.5]} 34... h3 {[%clk
0:00:27.6]} 35. Ng1 {[%clk 0:00:55.6]} 35... Rf2 {[%clk 0:00:25.3]} 36. Ne2
{[%clk 0:00:45.6]} 36... h2 {[%clk 0:00:19.4]} 37. Ng3 {[%clk 0:00:37.3]} 37...
Qxc2+ {[%clk 0:00:17.8]} 38. Ka3 {[%clk 0:00:37.3]} 38... Ra8+ {[%clk
0:00:13.8]} 39. Kb4 {[%clk 0:00:37.3]} 39... Rf4+ {[%clk 0:00:13.8]} 40. c4
{[%clk 0:00:36.4]} 40... Qd2+ {[%clk 0:00:13.5]} 41. Kc5 {[%clk 0:00:36.4]}
41... Bf8+ {[%clk 0:00:13.5]} 42. Kc6 {[%clk 0:00:36.4]} 42... Qd6+ {[%clk
0:00:13.2]} 43. Kb7 {[%clk 0:00:36.5]} 43... Rb8+ {[%clk 0:00:13.7]} 44. Ka7
{[%clk 0:00:36.4]} 44... Rxb5 {[%clk 0:00:09.8]} 45. cxb5 {[%clk 0:00:36.3]}
45... Qc7+ {[%clk 0:00:10]} 46. Ka6 {[%clk 0:00:35.4]} 46... Bc5 {[%clk
0:00:10.4]} 47. b6 {[%clk 0:00:35.5]} 47... Qxb6# {[%clk 0:00:10.4]} 0-1